bitfinex/quotes_BTCUSD_20220101
["timestamp","ask_amount","ask_price","bid_price","bid_amount"]
[1640996039385,0.053975,46330.0,46326.0,0.00011]
[1640996041046,0.31679904,46336.0,46326.0,0.10455245]
[1640996041047,0.01002296,46336.0,46326.0,0.10455245]
[1640996041249,0.01002296,46336.0,46331.0,0.10418909]
[1640996042046,0.01002296,46336.0,46332.0,0.209882]
[1640996042245,0.053965,46338.0,46332.0,0.209882]
[1640996042444,0.053965,46338.0,46331.0,0.10418909]
[1640996045292,0.053965,46338.0,46330.0,0.39388588]
[1640996045495,0.053965,46338.0,46330.0,0.03777741]
[1640996045693,0.64288236,46337.0,46330.0,0.01880275]
[1640996045893,0.053978,46334.0,46330.0,0.01880275]
[1640996046094,0.63762995,46333.0,46330.0,0.01880275]
[1640996046497,1.57031608,46331.0,46330.0,0.01880275]
[1640996046695,1.90811308,46331.0,46330.0,0.01880275]
[1640996046894,1.90811308,46331.0,46326.0,0.00011]
[1640996047094,0.30589605,46330.0,46326.0,0.00011]
[1640996047332,0.337797,46329.0,46326.0,0.00011]
[1640996048727,0.05398857,46328.0,46326.0,0.00011]
[1640996049029,0.63589576,46327.0,46326.0,0.00011]
[1640996049428,0.337797,46327.0,46326.0,0.00011]
[1640996052476,0.05399,46328.0,46326.0,0.00011]
[1640996053676,0.337797,46327.0,46326.0,0.00011]
[1640996054279,0.337797,46327.0,46320.0,0.28500105]
[1640996054478,0.05399,46328.0,46316.0,0.00022]
[1640996054677,0.05399,46328.0,46319.0,0.5880099]
[1640996055537,0.05399,46328.0,46321.0,0.09514788]
[1640996055836,0.05399,46328.0,46323.0,0.10338617]
[1640996056035,0.05399,46328.0,46324.0,0.209921]
[1640996056634,0.05399,46328.0,46325.0,0.10189938]
[1640996056837,0.053973,46330.0,46326.0,0.3013078]
[1640996057038,0.053973,46330.0,46326.0,0.58887155]
[1640996057236,0.005,46339.0,46327.0,0.09980197]
[1640996057436,0.30091049,46345.0,46329.0,0.09884855]
[1640996057635,0.30091049,46345.0,46332.0,0.0012857]
[1640996057636,0.107933,46340.0,46332.0,0.0012857]
[1640996058036,0.053967,46336.0,46332.0,0.0012857]
[1640996058239,0.053967,46336.0,46333.0,0.209865]
[1640996058434,0.053967,46336.0,46332.0,0.0012857]
[1640996059590,0.053967,46336.0,46327.0,0.00122913]
[1640996061786,0.28503339,46334.0,46327.0,0.00122913]
[1640996061988,0.053972,46331.0,46326.0,0.11573669]
[1640996062190,0.00125267,46341.0,46327.0,0.209897]
[1640996062453,0.337797,46340.0,46328.0,0.00124148]
[1640996062651,0.31477592,46339.0,46326.0,0.02221536]
[1640996062853,0.337797,46338.0,46326.0,0.02221536]
[1640996063050,0.29540148,46338.0,46326.0,0.00121026]
[1640996063650,0.337797,46337.0,46326.0,0.00121026]
[1640996064052,0.053979,46333.0,46326.0,0.00121026]
[1640996065051,0.35164005,46333.0,46326.0,0.00121026]
[1640996065351,0.053979,46333.0,46326.0,0.00121026]
[1640996067292,0.053979,46333.0,46326.0,0.09673122]
[1640996067691,0.053979,46333.0,46326.0,0.00121026]
[1640996072338,0.053979,46333.0,46327.0,0.2720246]
[1640996072837,0.053979,46333.0,46328.0,0.00120097]
[1640996073038,0.053979,46333.0,46329.0,0.209893]
[1640996073236,1.04625826,46346.0,46330.0,0.09215502]
[1640996073237,0.053967,46335.0,46330.0,0.09215502]
[1640996073438,0.6105,46346.0,46337.0,0.30351203]
[1640996073689,0.6105,46346.0,46338.0,0.09195646]
[1640996073889,0.6105,46346.0,46340.0,0.00121136]
[1640996074090,0.718417,46346.0,46340.0,0.00121136]
[1640996074689,0.053959,46344.0,46340.0,0.00121136]
[1640996077095,0.6105,46346.0,46340.0,0.00121136]
[1640996077353,0.6105,46346.0,46343.0,0.00128357]
[1640996078144,0.29573434,46345.0,46339.0,0.05]
[1640996078346,0.337797,46344.0,46336.0,0.01915378]
[1640996078745,0.29573434,46345.0,46336.0,0.01915378]
[1640996079147,0.6105,46346.0,46329.0,0.10110533]
[1640996079148,0.23652843,46338.0,46329.0,0.10110533]
[1640996079446,0.053969,46334.0,46330.0,0.209876]
[1640996079646,0.29709828,46333.0,46326.0,0.01123278]
[1640996079846,0.37889316,46337.0,46328.0,0.0211693]
[1640996080045,0.337797,46336.0,46328.0,0.0211693]
[1640996080449,0.30589772,46331.0,46328.0,0.0211693]
[1640996080644,0.41385172,46331.0,46328.0,0.0211693]
[1640996081090,0.107954,46331.0,46326.0,0.00121026]
[1640996081598,0.32870629,46339.0,46329.0,2.03207104]
[1640996081797,0.31588209,46345.0,46329.0,2.12935649]
[1640996081992,0.31588209,46345.0,46329.0,2.17935649]
[1640996082193,0.26080278,46339.0,46329.0,0.09728545]
[1640996082394,0.63124165,46338.0,46329.0,0.09728545]
[1640996082593,0.41445791,46335.0,46329.0,0.09728545]
[1640996082793,0.41445791,46335.0,46330.0,0.00121006]
[1640996082794,0.62776765,46334.0,46330.0,0.00121006]
[1640996082999,0.62912635,46334.0,46330.0,0.00121006]
[1640996083393,0.62768749,46334.0,46330.0,0.00121006]
[1640996083593,0.337797,46334.0,46330.0,0.00121006]
[1640996083992,0.053974,46332.0,46330.0,0.00121006]
[1640996086239,0.053968,46334.0,46331.0,0.0980736]
[1640996087440,0.053968,46334.0,46330.0,0.00121006]
[1640996094443,0.053968,46334.0,46330.0,0.0972884]
[1640996095438,0.053968,46334.0,46330.0,0.00121006]
[1640996097999,0.05529953,46334.0,46330.0,0.00121006]
[1640996099501,0.05529953,46334.0,46332.0,0.26297732]
[1640996099701,0.05529953,46334.0,46333.0,0.20987]
[1640996100147,0.05529953,46334.0,46330.0,0.00121006]
[1640996101148,0.05663917,46334.0,46330.0,0.00121006]
[1640996102849,0.00033966,46332.0,46330.0,0.00121006]
[1640996103050,0.053971,46331.0,46330.0,0.00121006]
[1640996103249,0.053971,46331.0,46330.0,0.21109306]
[1640996104489,0.00033966,46332.0,46330.0,0.21109306]
[1640996105890,0.00033966,46332.0,46330.0,0.00121006]
[1640996105891,0.05431066,46332.0,46330.0,0.00121006]
[1640996106091,1.84523634,46331.0,46330.0,0.00121006]
[1640996106290,1.94523634,46331.0,46330.0,0.00121006]
[1640996106489,0.77523634,46331.0,46330.0,0.00121006]
[1640996106992,1.10778335,46331.0,46330.0,0.00121006]
[1640996108947,0.00121133,46326.0,46324.0,0.01002286]
[1640996109146,0.337797,46325.0,46324.0,0.01002286]
[1640996109347,0.62874738,46325.0,46324.0,0.01002286]
[1640996109650,0.62874738,46325.0,46324.0,0.02011602]
[1640996109847,0.337797,46325.0,46324.0,0.02011602]
[1640996110245,0.337797,46325.0,46324.0,0.01009316]
[1640996110448,0.391789,46325.0,46324.0,0.01009316]
[1640996112606,0.68507269,46325.0,46324.0,0.01009316]
[1640996113206,0.78507269,46325.0,46324.0,0.01009316]
[1640996113607,0.491789,46325.0,46324.0,0.01009316]
[1640996113805,0.78292618,46325.0,46324.0,0.01009316]
[1640996114943,0.391789,46325.0,46324.0,0.01009316]
[1640996116145,0.053992,46325.0,46324.0,0.01009316]
[1640996117347,0.391789,46325.0,46324.0,0.01009316]
[1640996119792,0.68189964,46325.0,46324.0,0.01009316]
[1640996120595,0.67882474,46325.0,46324.0,0.01009316]
[1640996120897,1.82082474,46325.0,46324.0,0.01009316]
[1640996121496,1.92082474,46325.0,46324.0,0.01009316]
[1640996123356,1.633789,46325.0,46324.0,0.01009316]
[1640996129100,1.628789,46325.0,46324.0,0.01009316]
[1640996129701,1.628789,46325.0,46324.0,0.01130348]
[1640996134804,1.628789,46325.0,46324.0,1.01130348]
[1640996136210,0.386789,46325.0,46324.0,1.01130348]
[1640996136407,0.048992,46325.0,46324.0,1.24026913]
[1640996136806,0.107957,46329.0,46324.0,1.24026913]
[1640996136807,0.053976,46326.0,46324.0,1.24026913]
[1640996137007,0.053976,46326.0,46325.0,0.209917]
[1640996137207,0.053976,46326.0,46325.0,0.51704984]
[1640996137446,0.053976,46326.0,46325.0,0.527143]
[1640996138343,0.053976,46326.0,46325.0,0.54768441]
[1640996139345,0.053976,46326.0,46325.0,0.56918597]
[1640996139550,0.053976,46326.0,46325.0,0.54864456]
[1640996140445,0.053976,46326.0,46325.0,0.54628027]
[1640996141403,0.053976,46326.0,46325.0,0.56621571]
[1640996141603,0.053976,46326.0,46325.0,0.54707844]
[1640996142405,0.053976,46326.0,46325.0,0.56605092]
[1640996143209,0.053976,46326.0,46325.0,0.527143]
[1640996143406,0.053976,46326.0,46325.0,0.5467927]
[1640996143607,0.10828866,46332.0,46325.0,0.5467927]
[1640996143806,0.10828866,46332.0,46325.0,0.3368757]
[1640996144007,0.10828866,46332.0,46325.0,2.22458698]
[1640996144208,0.10828866,46332.0,46327.0,0.31118253]
[1640996144408,0.10828866,46332.0,46328.0,0.01009316]
[1640996145461,0.053976,46330.0,46328.0,0.01009316]
[1640996149404,0.053976,46330.0,46324.0,1.61108668]
[1640996149405,0.053976,46330.0,46324.0,1.0219584]
[1640996149604,0.053976,46330.0,46329.0,0.01009316]
[1640996149806,0.391773,46330.0,46329.0,0.01009316]
[1640996150305,0.053976,46330.0,46329.0,0.01009316]
[1640996155558,0.053976,46330.0,46329.0,0.01130333]
[1640996155758,0.048976,46330.0,46329.0,0.01130333]
[1640996163250,0.386773,46330.0,46329.0,0.01130333]
[1640996163449,0.386773,46330.0,46324.0,1.01939199]
[1640996163450,0.00120462,46326.0,46324.0,1.04084031]
[1640996163715,2.91660785,46325.0,46324.0,1.02144832]
[1640996163911,0.61460785,46325.0,46324.0,1.02144832]
[1640996164111,0.71460785,46325.0,46324.0,1.02144832]
[1640996164313,1.88460785,46325.0,46324.0,0.58944932]
[1640996164512,0.76860785,46325.0,46324.0,0.6109952]
[1640996164712,0.66860785,46325.0,46324.0,0.58954688]
[1640996164913,0.76860785,46325.0,46324.0,0.58954688]
[1640996165111,0.66860785,46325.0,46324.0,0.58954688]
[1640996165512,0.76860785,46325.0,46324.0,0.58954688]
[1640996165712,0.76860785,46325.0,46324.0,0.59867908]
[1640996165913,0.66860785,46325.0,46324.0,0.5771332]
[1640996166215,0.391797,46325.0,46324.0,0.5771332]
[1640996166616,0.391797,46325.0,46324.0,0.58616543]
[1640996166812,0.391797,46325.0,46324.0,0.57703323]
[1640996167654,0.054,46325.0,46324.0,0.58667102]
[1640996167855,0.054,46325.0,46324.0,0.57763879]
[1640996168652,0.054,46325.0,46324.0,0.59619251]
[1640996168856,0.054,46325.0,46324.0,0.58655472]
[1640996169655,0.054,46325.0,46324.0,0.60585543]
[1640996169854,0.054,46325.0,46324.0,0.58730171]
[1640996170654,0.054,46325.0,46324.0,0.60734446]
[1640996170953,0.054,46325.0,46324.0,0.58804375]
[1640996171706,0.054,46325.0,46324.0,0.6080435]
[1640996171906,0.054,46325.0,46324.0,0.58800075]
[1640996172708,0.054,46325.0,46324.0,0.60673109]
[1640996172909,0.054,46325.0,46324.0,0.58673134]
[1640996173808,0.054,46325.0,46324.0,0.58604337]
[1640996175245,0.054,46325.0,46324.0,0.60692834]
[1640996175449,0.054,46325.0,46324.0,0.58888597]
[1640996175646,0.054,46325.0,46324.0,0.60740278]
[1640996175846,0.054,46325.0,46324.0,0.58651781]
[1640996176653,0.054,46325.0,46324.0,0.60684362]
[1640996176952,0.054,46325.0,46324.0,0.58832681]
[1640996177148,0.054,46325.0,46324.0,0.79824881]
[1640996177351,0.053976,46327.0,46324.0,0.79824881]
[1640996177550,0.053976,46327.0,46326.0,0.00128295]
[1640996177849,0.053976,46327.0,46326.0,0.21119295]
[1640996178352,0.053976,46327.0,46324.0,0.58941288]
[1640996178608,0.053976,46327.0,46324.0,0.60929889]
[1640996179009,0.053976,46327.0,46324.0,0.58788701]
[1640996179711,0.053976,46327.0,46324.0,0.60805777]
[1640996179913,0.053976,46327.0,46324.0,0.58817176]
[1640996180714,0.053976,46327.0,46324.0,0.60945493]
[1640996180913,0.053976,46327.0,46325.0,0.209915]
[1640996182552,0.053976,46327.0,46324.0,0.58848818]
[1640996182746,0.053976,46327.0,46324.0,0.60796087]
[1640996182949,0.053976,46327.0,46324.0,0.58868398]
[1640996183547,0.053976,46327.0,46325.0,0.4553364]
[1640996183746,0.053976,46327.0,46326.0,0.00125208]
[1640996183946,0.053976,46327.0,46326.0,0.21116208]
[1640996184148,0.053976,46327.0,46324.0,0.59012723]
[1640996184347,0.053976,46327.0,46325.0,0.209915]
[1640996184747,0.053976,46327.0,46325.0,0.23054304]
[1640996185549,0.053976,46327.0,46325.0,0.02062804]
[1640996185951,0.053976,46327.0,46324.0,0.59073715]
[1640996186824,0.053976,46327.0,46324.0,0.60982914]
[1640996187021,0.053976,46327.0,46324.0,0.57330328]
[1640996187722,0.053976,46327.0,46324.0,0.59205505]
[1640996187921,0.053976,46327.0,46324.0,0.57296306]
[1640996188122,0.053976,46327.0,46325.0,0.209916]
[1640996188525,0.053976,46327.0,46324.0,0.57296306]
[1640996188722,0.053976,46327.0,46324.0,0.59162837]
[1640996188922,0.053976,46327.0,46324.0,0.5728766]
[1640996189863,0.053976,46327.0,46324.0,0.59476856]
[1640996190064,0.053976,46327.0,46324.0,0.57610325]
[1640996190866,0.053976,46327.0,46324.0,0.59756326]
[1640996191065,0.053976,46327.0,46324.0,0.5756713]
[1640996191767,0.053976,46327.0,46324.0,0.59701888]
[1640996191971,0.053976,46327.0,46324.0,0.57555887]
[1640996192471,0.053994,46326.0,46324.0,0.57555887]
[1640996192669,0.337797,46325.0,46324.0,0.57555887]
[1640996192868,0.053994,46326.0,46324.0,0.59599289]
[1640996193068,0.053994,46326.0,46324.0,0.57464531]
[1640996193471,0.337797,46325.0,46324.0,0.57464531]
[1640996193917,0.392857,46325.0,46324.0,0.59390843]
[1640996194818,0.68148817,46325.0,46324.0,0.61359704]
[1640996195019,1.02338876,46325.0,46324.0,0.5738999]
[1640996195917,1.02338876,46325.0,46324.0,0.59392547]
[1640996196916,1.02338876,46325.0,46324.0,0.61200302]
[1640996197120,1.02338876,46325.0,46324.0,0.57228884]
[1640996197755,1.02338876,46325.0,46324.0,0.59411621]
[1640996197956,1.12338876,46325.0,46324.0,0.57603866]
[1640996198557,1.02338876,46325.0,46324.0,0.57603866]
[1640996198757,1.02338876,46325.0,46324.0,0.59712874]
[1640996198956,1.02338876,46325.0,46324.0,0.57530137]
[1640996199960,1.02338876,46325.0,46324.0,0.59605961]
[1640996200960,1.02338876,46325.0,46324.0,0.61572201]
[1640996201207,1.02338876,46325.0,46324.0,0.57387369]
[1640996201707,0.68148817,46325.0,46324.0,0.57387369]
[1640996201907,0.68148817,46325.0,46324.0,0.58299481]
[1640996202107,0.392857,46325.0,46324.0,0.56333241]
[1640996202907,0.392857,46325.0,46324.0,0.58256421]
[1640996203108,0.392857,46325.0,46324.0,0.57344309]
[1640996203316,0.05506,46325.0,46324.0,0.78336509]
[1640996203908,0.053994,46326.0,46324.0,0.80384879]
[1640996204209,0.053994,46326.0,46325.0,0.209917]
[1640996204607,0.053994,46326.0,46324.0,0.57469499]
[1640996204877,0.053994,46326.0,46324.0,0.59365455]
[1640996205067,0.053994,46326.0,46324.0,0.57317085]
[1640996205867,0.053994,46326.0,46324.0,0.59347705]
[1640996206068,0.053994,46326.0,46324.0,0.57451749]
[1640996207068,0.053994,46326.0,46324.0,0.59323059]
[1640996207268,0.053994,46326.0,46324.0,0.57292439]
[1640996208069,0.053994,46326.0,46324.0,0.59415405]
[1640996208269,0.053994,46326.0,46324.0,0.57544095]
[1640996208928,0.053994,46326.0,46324.0,0.59530189]
[1640996209129,0.053994,46326.0,46324.0,0.57407223]
[1640996209927,0.053994,46326.0,46324.0,0.59539949]
[1640996210132,0.053994,46326.0,46324.0,0.57553855]
[1640996210931,0.053994,46326.0,46324.0,0.59437078]
[1640996211130,0.053994,46326.0,46324.0,0.57304352]
[1640996211330,0.10797893,46326.0,46324.0,0.57304352]
[1640996211530,0.053994,46326.0,46325.0,0.00125211]
[1640996211729,0.053994,46326.0,46325.0,0.21116811]
[1640996212976,0.053994,46326.0,46325.0,0.21237838]
[1640996213676,0.053994,46326.0,46325.0,0.21112627]
[1640996213877,0.053994,46326.0,46325.0,0.26618627]
[1640996214076,0.053994,46326.0,46325.0,0.05627027]
[1640996221365,0.391791,46326.0,46325.0,0.05627027]
[1640996221567,0.053994,46326.0,46325.0,0.05627027]
[1640996221968,0.34400579,46326.0,46325.0,0.05627027]
[1640996222169,0.34400579,46326.0,46324.0,0.59567682]
[1640996222170,1.16,46325.0,46324.0,0.59567682]
[1640996222367,1.83199339,46325.0,46324.0,0.59567682]
[1640996222566,1.83199339,46325.0,46324.0,0.16369982]
[1640996223168,1.83199339,46325.0,46319.0,0.5671977]
[1640996223368,0.44878912,46320.0,46319.0,0.5671977]
[1640996224014,0.46842898,46320.0,46319.0,0.5671977]
[1640996224416,1.98622598,46320.0,46319.0,0.1351597]
[1640996224613,2.08622598,46320.0,46319.0,0.1349397]
[1640996224812,2.08622598,46320.0,46315.0,0.01096081]
[1640996224813,1.76748804,46318.0,46315.0,0.01096081]
[1640996225014,0.337797,46314.0,46312.0,0.00044]
[1640996225212,1.36615582,46313.0,46312.0,0.00044]
[1640996225413,1.517797,46313.0,46312.0,0.00044]
[1640996226014,1.517797,46313.0,46304.0,0.00044]
[1640996226318,0.337797,46312.0,46304.0,0.00044]
[1640996226513,1.18,46311.0,46304.0,0.00044]
[1640996226712,1.70530109,46311.0,46304.0,0.00044]
[1640996226914,1.517797,46311.0,46304.0,0.00044]
[1640996227214,1.561811,46310.0,46304.0,0.00044]
[1640996227471,0.337797,46310.0,46304.0,0.00044]
[1640996227669,0.39181035,46310.0,46304.0,0.00044]
[1640996227871,0.054014,46309.0,46304.0,0.00044]
[1640996228069,0.337797,46308.0,46304.0,0.00044]
[1640996228469,1.17,46307.0,46304.0,0.00044]
[1640996228670,1.327797,46307.0,46304.0,0.00044]
[1640996229074,0.35727037,46307.0,46304.0,0.00044]
[1640996230671,0.37605105,46307.0,46304.0,0.00044]
[1640996231119,0.37715423,46307.0,46304.0,0.00044]
[1640996231323,0.35837355,46307.0,46304.0,0.00044]
[1640996232223,0.37916306,46307.0,46304.0,0.00044]
[1640996232422,0.35858651,46307.0,46304.0,0.00044]
[1640996233223,0.37784858,46307.0,46304.0,0.00044]
[1640996233524,0.35705907,46307.0,46304.0,0.00044]
[1640996234125,0.37864517,46307.0,46304.0,0.00044]
[1640996234323,0.3593831,46307.0,46304.0,0.00044]
[1640996235174,0.04005669,46307.0,46304.0,0.00044]
[1640996235371,0.01847059,46307.0,46306.0,0.30832238]
[1640996236072,0.01847059,46307.0,46306.0,0.5947489]
[1640996236270,0.01847059,46307.0,46306.0,0.6395489]
[1640996236471,0.054014,46309.0,46306.0,0.6395489]
[1640996236675,0.054014,46309.0,46308.0,0.9548]
[1640996236871,0.054014,46309.0,46308.0,1.164816]
[1640996237074,0.054014,46309.0,46308.0,0.254816]
[1640996237273,0.054014,46309.0,46308.0,0.210016]
[1640996238272,0.054014,46309.0,46306.0,0.3847209]
[1640996238647,0.054014,46309.0,46308.0,0.00121072]
[1640996238847,0.054014,46309.0,46306.0,0.00044]
[1640996239048,0.00122576,46308.0,46306.0,0.00044]
[1640996239747,1.347797,46307.0,46306.0,0.00044]
[1640996240146,0.337797,46307.0,46306.0,0.00044]
[1640996240544,0.88,46306.0,46304.0,0.00044]
[1640996240744,1.217797,46306.0,46304.0,0.00044]
[1640996240946,1.50725475,46306.0,46304.0,0.00044]
[1640996241346,1.037797,46305.0,46304.0,0.00044]
[1640996241546,0.337797,46305.0,46304.0,0.00044]
[1640996242144,0.46988195,46306.0,46304.0,0.00044]
[1640996242415,0.02101149,46305.0,46304.0,0.00044]
[1640996243006,0.35880849,46305.0,46304.0,0.00044]
[1640996243206,0.64338337,46305.0,46304.0,0.00044]
[1640996243407,0.62237188,46305.0,46304.0,0.00022]
[1640996243610,0.62237188,46305.0,46301.0,0.00233]
[1640996243611,1.507797,46303.0,46301.0,0.00233]
[1640996243808,2.00820116,46302.0,46301.0,0.00156]
[1640996244010,2.00820116,46302.0,46290.0,1.58537015]
[1640996244011,1.507797,46301.0,46290.0,0.59017015]
[1640996244210,0.00120492,46293.0,46290.0,0.59017015]
[1640996244414,0.00120492,46293.0,46290.0,0.15786915]
[1640996244415,0.67771875,46292.0,46290.0,0.15786915]
[1640996244913,0.83175475,46292.0,46289.0,0.02]
[1640996245108,0.332797,46291.0,46288.0,0.00044]
[1640996245511,1.17,46290.0,46287.0,0.00044]
[1640996245712,0.6291968,46289.0,46287.0,0.00044]
[1640996245912,0.91,46288.0,46287.0,0.00044]
[1640996246109,0.91,46288.0,46285.0,0.00044]
[1640996246110,1.17,46287.0,46285.0,0.00044]
[1640996246311,0.62752947,46287.0,46285.0,0.00044]
[1640996246811,0.33707675,46287.0,46285.0,0.00044]
[1640996247015,0.33634217,46287.0,46285.0,0.00044]
[1640996247214,0.35442297,46287.0,46285.0,0.00044]
[1640996247412,0.0180808,46287.0,46285.0,0.00044]
[1640996248215,0.0180808,46287.0,46286.0,0.236413]
[1640996248414,0.03078989,46287.0,46286.0,0.236413]
[1640996249013,0.03078989,46287.0,46286.0,1.236413]
[1640996249415,0.03078989,46287.0,46286.0,1.0198]
[1640996260457,0.03078989,46287.0,46286.0,1.01986792]
[1640996260658,0.03078989,46287.0,46286.0,1.01993584]
[1640996261519,0.02578989,46287.0,46286.0,1.01993584]
[1640996261718,0.02578989,46287.0,46286.0,1.01493584]
[1640996263323,0.07981922,46287.0,46286.0,1.01493584]
[1640996271224,0.07981922,46287.0,46286.0,1.01499801]
[1640996275062,0.41763422,46287.0,46286.0,1.01499801]
[1640996275563,0.07981922,46287.0,46286.0,1.01499801]
[1640996281970,0.07981922,46287.0,46286.0,1.01486792]
[1640996287766,0.07481922,46287.0,46286.0,1.01486792]
[1640996291812,0.68481922,46287.0,46286.0,0.58257092]
[1640996292013,1.02263422,46287.0,46286.0,0.58257092]
[1640996292212,0.41263422,46287.0,46286.0,0.58257092]
[1640996292413,0.41263422,46287.0,46286.0,0.15025992]
[1640996292612,0.43452115,46287.0,46286.0,0.15025992]
[1640996293115,0.054045,46284.0,46281.0,0.00244]
[1640996293315,0.054045,46284.0,46280.0,0.00011]
[1640996293316,0.44427333,46283.0,46280.0,0.00011]
[1640996293615,0.1052,46281.0,46277.0,0.00921485]
[1640996293918,0.1052,46281.0,46276.0,0.00044]
[1640996293919,1.06,46279.0,46276.0,0.00044]
[1640996294114,0.65714207,46278.0,46276.0,0.00044]
[1640996294317,0.71118607,46278.0,46276.0,0.00044]
[1640996294514,0.76523004,46278.0,46276.0,0.00044]
[1640996295762,0.78396649,46278.0,46276.0,0.00044]
[1640996297362,0.80418148,46278.0,46276.0,0.00044]
[1640996297561,0.78544503,46278.0,46276.0,0.00044]
[1640996297762,0.80624278,46278.0,46276.0,0.00044]
[1640996297964,0.78602779,46278.0,46276.0,0.00044]
[1640996298817,0.80434153,46278.0,46276.0,0.00044]
[1640996299120,0.78354378,46278.0,46276.0,0.00044]
[1640996299715,0.80410936,46278.0,46276.0,0.00044]
[1640996300116,1.17,46277.0,46274.0,0.00022]
[1640996300415,0.997824,46276.0,46274.0,0.00022]
[1640996300816,0.337824,46276.0,46274.0,0.00022]
[1640996301016,0.1080962,46277.0,46274.0,0.00022]
[1640996302380,0.9780962,46277.0,46274.0,0.00022]
[1640996302673,0.391874,46276.0,46274.0,0.00022]
[1640996303072,0.391874,46276.0,46275.0,6.533e-05]
[1640996303675,0.41054643,46276.0,46275.0,6.533e-05]
[1640996304674,0.05404844,46272.0,46267.0,0.02526262]
[1640996304874,0.054049,46271.0,46268.0,0.221714]
[1640996305774,0.10809744,46271.0,46268.0,0.221714]
[1640996306126,0.054049,46270.0,46268.0,0.221714]
[1640996306931,0.10809703,46270.0,46268.0,0.221714]
[1640996307126,0.108099,46269.0,46268.0,0.221714]
[1640996307828,0.108099,46269.0,46268.0,0.216714]
[1640996312367,0.108099,46269.0,46267.0,0.01889066]
[1640996313063,0.108099,46269.0,46268.0,0.21672]
[1640996313718,0.108099,46269.0,46268.0,0.52254265]
[1640996313918,0.108099,46269.0,46268.0,0.21672]
[1640996315923,0.108099,46269.0,46267.0,0.01889066]
[1640996316322,0.108099,46269.0,46262.0,0.00124978]
[1640996316524,0.18240064,46271.0,46263.0,0.216748]
[1640996316525,0.10809,46267.0,46263.0,0.216748]
[1640996316724,0.10809,46267.0,46264.0,0.41664025]
[1640996316922,0.10809,46267.0,46266.0,0.10425305]
[1640996317122,0.10809,46267.0,46266.0,0.216732]
[1640996318771,0.16213877,46267.0,46266.0,0.216732]
[1640996318971,0.10809,46267.0,46266.0,0.216732]
[1640996322325,0.10809,46267.0,46265.0,0.09651652]
[1640996322528,0.10809,46267.0,46266.0,0.216732]
[1640996326260,0.108089,46268.0,46266.0,0.32086927]
[1640996331518,0.108089,46268.0,46267.0,2.06237719]
[1640996331717,0.108089,46268.0,46267.0,2.27910319]
[1640996332117,0.108089,46268.0,46267.0,0.216726]
[1640996332760,0.12999026,46271.0,46269.0,0.108089]
[1640996332964,0.01012556,46276.0,46273.0,0.08616174]
[1640996333158,0.01012556,46276.0,46275.0,1.386679]
[1640996333559,0.01012556,46276.0,46275.0,1.80931916]
[1640996333760,0.0340568,46282.0,46278.0,0.31867997]
[1640996333959,0.0340568,46282.0,46279.0,0.216653]
[1640996334162,0.0340568,46282.0,46279.0,0.71094093]
[1640996334361,0.0340568,46282.0,46280.0,0.30297793]
[1640996334563,0.0880778,46282.0,46281.0,0.216642]
[1640996335062,0.07106503,46282.0,46281.0,0.216642]
[1640996335261,0.07106503,46282.0,46275.0,0.01010365]
[1640996335262,0.37075988,46282.0,46275.0,0.01010365]
[1640996335465,0.37075988,46282.0,46276.0,0.216666]
[1640996336120,0.38148094,46282.0,46276.0,0.216666]
[1640996336322,0.05403743,46280.0,46276.0,0.216666]
[1640996336523,0.054037,46278.0,46276.0,0.216666]
[1640996340062,0.054037,46278.0,46277.0,0.29766973]
[1640996340265,0.054037,46278.0,46277.0,0.51561744]
[1640996340462,0.054037,46278.0,46277.0,0.216666]
[1640996340665,0.054037,46278.0,46277.0,0.52337296]
[1640996341063,0.054037,46278.0,46277.0,0.216666]
[1640996343811,0.054037,46278.0,46277.0,0.51628234]
[1640996344011,0.054037,46278.0,46277.0,0.216666]
[1640996344815,0.054037,46278.0,46277.0,0.60705759]
[1640996345013,0.054037,46278.0,46277.0,0.31292409]
[1640996345614,0.054037,46278.0,46277.0,0.216666]
[1640996346016,0.054037,46278.0,46273.0,0.18482832]
[1640996348376,0.02,46294.0,46284.0,0.02874166]
[1640996348577,0.02,46294.0,46286.0,1.17125444]
[1640996348772,0.02,46294.0,46286.0,1.44655644]
[1640996348973,0.02,46294.0,46286.0,1.54655644]
[1640996349176,8.989e-05,46287.0,46286.0,0.98655644]
[1640996349374,8.989e-05,46287.0,46286.0,0.32655644]
[1640996349775,8.989e-05,46287.0,46286.0,0.26786644]
[1640996350174,8.989e-05,46287.0,46286.0,0.28793903]
[1640996350374,8.989e-05,46287.0,46286.0,0.23793903]
[1640996350582,0.23818211,46287.0,46286.0,0.02132703]
[1640996350776,0.23818211,46287.0,46286.0,0.02007259]
[1640996351624,0.10815301,46287.0,46286.0,0.02007259]
[1640996352029,0.10815301,46287.0,46278.0,0.01009428]
[1640996352030,0.108072,46281.0,46278.0,0.01009428]
[1640996352226,0.32912782,46280.0,46278.0,0.01009428]
[1640996352425,0.337836,46279.0,46278.0,0.01009428]
[1640996352629,0.63633525,46279.0,46278.0,0.01009428]
[1640996352926,0.25758121,46276.0,46266.0,0.00571947]
[1640996353126,0.25758121,46276.0,46267.0,0.216713]
[1640996353127,0.56212752,46268.0,46267.0,0.216713]
[1640996353729,0.61617652,46268.0,46266.0,0.00571947]
[1640996353930,1.16,46267.0,46263.0,0.61165394]
[1640996354129,0.27723611,46264.0,46262.0,0.00022]
[1640996354428,0.66,46262.0,46260.0,0.18000494]
[1640996354631,0.66,46262.0,46259.0,0.00033]
[1640996354632,0.26760226,46261.0,46259.0,0.00033]
[1640996354882,0.26760226,46261.0,46253.0,0.61447572]
[1640996354883,1.7176252,46255.0,46253.0,0.61447572]
[1640996355073,0.5476252,46255.0,46253.0,0.61447572]
[1640996355275,0.2819038,46251.0,46247.0,0.0003]
[1640996355474,0.3511738,46251.0,46247.0,0.0003]
[1640996355674,0.25722784,46250.0,46247.0,0.0003]
[1640996356277,0.31130284,46250.0,46247.0,0.0003]
[1640996356477,1.06,46249.0,46244.0,0.01662]
[1640996356676,0.36537836,46250.0,46244.0,0.01662]
[1640996356677,0.31130336,46250.0,46244.0,0.01662]
[1640996356875,0.25722784,46250.0,46244.0,0.01662]
[1640996357277,0.054074,46247.0,46244.0,0.01662]
[1640996358720,0.054074,46247.0,46245.0,0.09764101]
[1640996358923,0.054074,46247.0,46246.0,0.0955975]